bitfinex/quotes_SOLUSD_20250617
["timestamp","ask_amount","ask_price","bid_price","bid_amount"]
[1750140835598,26.8,154.32,154.28,24.1154788]
[1750140835988,31.9815068,154.32,154.28,24.1154788]
[1750140836594,31.9815068,154.32,154.28,30.59716336]
[1750140838010,5.1815068,154.32,154.28,30.59716336]
[1750140838188,31.9815068,154.32,154.28,30.59716336]
[1750140838505,31.9815068,154.32,154.28,5.46582994]
[1750140838713,31.9815068,154.32,154.29,18.64964886]
[1750140839605,5.1815068,154.3,154.24,6.0358]
[1750140839912,31.9815068,154.29,154.26,0.14216157]
[1750140840110,31.9815068,154.28,154.26,0.14216157]
[1750140840310,31.9815068,154.28,154.25,18.64964886]
[1750140840529,6.47962159,154.33,154.26,5.46582994]
[1750140840823,5.1815068,154.31,154.26,5.46582994]
[1750140841196,5.1815068,154.3,154.27,18.64964886]
[1750140842010,5.1815068,154.31,154.27,18.64964886]
[1750140842903,26.78,154.3,154.27,18.64964886]
[1750140843806,26.78,154.3,154.27,23.83115566]
[1750140844121,5.1815068,154.32,154.28,0.28432314]
[1750140844414,26.78,154.31,154.28,5.46582994]
[1750140845116,26.78,154.31,154.28,0.28432314]
[1750140845612,31.9615068,154.31,154.28,0.28432314]
[1750140849502,26.78,154.31,154.28,0.28432314]
[1750140849823,31.9615068,154.31,154.28,0.28432314]
[1750140850803,5.1815068,154.3,154.27,18.64964886]
[1750140851009,5.1815068,154.29,154.26,18.933972]
[1750140851723,5.1815068,154.27,154.2,6.6122]
[1750140852031,5.1815068,154.26,154.22,44.64964886]
[1750140852325,26.78,154.27,154.23,0.28432314]
[1750140852823,5.1815068,154.26,154.23,0.28432314]
[1750140853800,5.1815068,154.25,154.23,0.28432314]
[1750140855920,5.1815068,154.26,154.23,0.28432314]
[1750140856218,5.1815068,154.24,154.21,18.64964886]
[1750140856423,5.1815068,154.23,154.21,18.64964886]
[1750140856896,31.9615068,154.24,154.21,18.64964886]
[1750140858624,31.9615068,154.24,154.21,18.64964886]
[1750140861232,5.1815068,154.24,154.21,18.64964886]
[1750140861413,31.9615068,154.24,154.21,18.64964886]
[1750140863023,26.78,154.24,154.21,18.64964886]
[1750140863221,31.9615068,154.24,154.21,18.64964886]
[1750140870007,5.86,154.28,154.23,5.1815068]
[1750140870226,5.86,154.28,154.26,5.1815068]
[1750140870409,5.86,154.28,154.27,18.64964886]
[1750140870606,5.1815068,154.32,154.27,5.46582994]
[1750140870805,26.76,154.31,154.27,18.933972]
[1750140871012,26.76,154.31,154.28,5.1815068]
[1750140871245,5.84,154.33,154.29,23.83115566]
[1750140871449,32.6,154.33,154.31,5.1815068]
[1750140871904,32.6,154.33,154.3,5.1815068]
[1750140872410,5.84,154.33,154.3,5.1815068]
[1750140872611,32.6,154.33,154.3,5.1815068]
[1750140873532,5.84,154.33,154.3,5.1815068]
[1750140873736,32.6,154.33,154.3,5.1815068]
[1750140873933,44.26119291,154.33,154.29,0.28432314]
[1750140874402,5.1815068,154.31,154.28,18.64964886]
[1750140874606,39.07968611,154.33,154.26,18.64964886]
[1750140874607,31.9415068,154.3,154.26,18.64964886]
[1750140875035,5.1815068,154.29,154.25,18.64964886]
[1750140875228,26.76,154.28,154.25,18.64964886]
[1750140875428,5.1815068,154.27,154.23,13.17959544]
[1750140875628,5.1815068,154.26,154.24,18.64964886]
[1750140876134,26.76,154.25,154.23,18.64964886]
[1750140876920,31.9415068,154.25,154.23,18.64964886]
[1750140877730,38.42451189,154.25,154.22,26.0]
[1750140878534,31.9415068,154.25,154.22,26.0]
[1750140883245,26.76,154.25,154.23,18.933972]
[1750140883535,26.76,154.25,154.23,24.1154788]
[1750140884338,26.76,154.25,154.23,18.933972]
[1750140884531,26.76,154.25,154.23,24.1154788]
[1750140884834,12.32219613,154.27,154.23,18.933972]
[1750140885039,26.76,154.26,154.23,18.933972]
[1750140885932,31.9415068,154.26,154.23,18.933972]
[1750140888037,5.1815068,154.26,154.23,18.933972]
[1750140888242,31.9215068,154.26,154.23,18.933972]
[1750140890929,26.74,154.26,154.23,18.933972]
[1750140891139,31.9215068,154.26,154.23,18.933972]
[1750140893445,26.74,154.26,154.23,18.933972]
[1750140893629,31.9215068,154.26,154.23,18.933972]
[1750140896158,5.1815068,154.25,154.2,6.48495378]
[1750140896356,5.1815068,154.25,154.22,0.28432314]
[1750140896525,26.74,154.24,154.22,0.28432314]
[1750140899833,26.74,154.24,154.21,18.64964886]
[1750140900033,31.9215068,154.24,154.21,18.64964886]
[1750140900436,38.40503874,154.24,154.21,18.64964886]
[1750140900674,31.9215068,154.24,154.21,18.64964886]
[1750140900966,31.9215068,154.24,154.2,26.28432314]
[1750140900967,5.1815068,154.22,154.14,1.5833]
[1750140901172,28.3104,154.21,154.11,6.48874919]
[1750140901466,5.1815068,154.15,154.1,19.77777943]
[1750140901834,5.1815068,154.12,154.07,6.49055624]
[1750140902143,5.1815068,154.12,154.07,11.67206304]
[1750140902474,5.1815068,154.11,154.06,19.77936702]
[1750140902763,5.1815068,154.11,154.06,13.2885068]
[1750140902937,5.1815068,154.09,154.07,26.0]
[1750140903137,31.9215068,154.1,154.07,26.0]
[1750140903437,31.9215068,154.1,154.08,18.64964886]
[1750140903851,31.9215068,154.1,154.07,18.64964886]
[1750140904640,5.1815068,154.09,154.07,44.64964886]
[1750140905042,26.74,154.1,154.07,44.64964886]
[1750140905043,31.9215068,154.1,154.07,44.64964886]
[1750140905855,38.41083087,154.1,154.07,44.64964886]
[1750140906073,5.1815068,154.08,154.02,8.1328]
[1750140906245,5.1815068,154.06,154.03,18.64964886]
[1750140906442,26.74,154.07,154.03,18.64964886]
[1750140906443,31.9215068,154.07,154.03,18.64964886]
[1750140906765,31.9215068,154.07,154.04,0.28432314]
[1750140906966,5.84,154.11,154.07,18.933972]
[1750140907270,5.84,154.11,154.09,5.1815068]
[1750140907653,5.84,154.11,154.08,18.64964886]
[1750140907854,11.0215068,154.11,154.08,18.64964886]
[1750140908053,5.84,154.11,154.08,18.64964886]
[1750140908575,5.84,154.11,154.08,23.83115566]
[1750140908766,5.84,154.11,154.1,23.83115566]
[1750140909360,5.84,154.16,154.1,24.1154788]
[1750140909706,31.9215068,154.15,154.12,18.64964886]
[1750140911080,26.74,154.15,154.12,18.64964886]
[1750140911755,31.9215068,154.15,154.12,18.64964886]
[1750140912464,16.21340768,154.2,154.14,5.1815068]
[1750140912465,6.4850843,154.2,154.14,5.1815068]
[1750140912659,6.4850843,154.2,154.15,5.1815068]
[1750140912660,26.74,154.19,154.15,5.1815068]
[1750140913179,26.74,154.19,154.16,5.1815068]
[1750140914768,5.1815068,154.2,154.16,5.1815068]
[1750140914976,26.74,154.19,154.16,5.1815068]
[1750140915167,5.1815068,154.2,154.16,5.1815068]
[1750140915490,31.9215068,154.2,154.16,5.1815068]
[1750140915995,31.9215068,154.2,154.15,11.66866358]
[1750140916775,5.1815068,154.2,154.15,11.66866358]
[1750140916981,31.9215068,154.2,154.15,11.66866358]
[1750140917393,5.84,154.21,154.17,18.933972]
[1750140917695,5.1815068,154.19,154.16,18.933972]
[1750140917897,5.1815068,154.19,154.15,18.64964886]
[1750140918278,5.1815068,154.19,154.15,23.83115566]
[1750140918473,5.1815068,154.19,154.15,30.31831315]
[1750140918673,39.04486405,154.21,154.18,5.1815068]
[1750140918674,5.84,154.21,154.18,5.1815068]
[1750140918877,32.56,154.21,154.18,5.1815068]
[1750140919198,26.72,154.24,154.2,5.46582994]
[1750140919496,5.1815068,154.22,154.18,18.64964886]
[1750140919691,26.72,154.24,154.18,18.64964886]
[1750140919692,5.1815068,154.21,154.18,18.64964886]
[1750140919872,5.1815068,154.22,154.18,18.64964886]
[1750140920071,5.1815068,154.22,154.18,23.83115566]
[1750140921070,26.72,154.21,154.18,23.83115566]
[1750140923075,26.72,154.21,154.18,18.64964886]
[1750140923375,26.72,154.21,154.18,30.31706394]
[1750140923782,26.72,154.21,154.19,0.28432314]
[1750140923983,26.72,154.21,154.2,18.64964886]
[1750140924173,5.1815068,154.23,154.2,18.64964886]
[1750140924369,5.84,154.26,154.21,5.46582994]
[1750140924370,5.1815068,154.25,154.21,5.46582994]
[1750140924574,38.38460714,154.25,154.22,18.64964886]
[1750140924774,5.1815068,154.24,154.22,18.64964886]
[1750140925477,33.20310034,154.25,154.2,18.64964886]
[1750140925478,11.66532966,154.23,154.2,18.64964886]
[1750140925665,5.1815068,154.22,154.2,18.64964886]
[1750140926170,11.66532966,154.23,154.2,18.64964886]
[1750140927092,5.1815068,154.22,154.2,18.64964886]
[1750140927298,5.1815068,154.21,154.18,18.933972]
[1750140927596,38.38597546,154.22,154.18,18.933972]
[1750140929200,5.1815068,154.21,154.18,18.933972]
[1750140932780,11.66630246,154.21,154.18,18.933972]
[1750140932977,5.1815068,154.21,154.18,18.933972]
[1750140934587,11.66619957,154.21,154.18,18.933972]
[1750140934995,6.48469277,154.21,154.18,18.933972]
[1750140935182,38.38582389,154.22,154.18,18.933972]
[1750140935379,5.1815068,154.21,154.18,18.933972]
[1750140936907,33.20431709,154.22,154.16,18.64964886]
[1750140936908,5.1815068,154.19,154.16,18.64964886]
[1750140937097,5.1815068,154.18,154.16,18.64964886]
[1750140937296,5.1815068,154.17,154.12,1.5904]
[1750140937495,5.1815068,154.14,154.12,1.5904]
[1750140937876,5.1815068,154.14,154.13,18.64964886]
[1750140939916,5.1815068,154.15,154.13,18.64964886]
[1750140940915,5.1815068,154.15,154.04,7.8845]
[1750140940916,5.1815068,154.14,154.05,18.64964886]
[1750140941120,5.1815068,154.09,154.05,44.64964886]
[1750140941320,5.1815068,154.08,154.05,44.64964886]
[1750140941493,5.1815068,154.09,154.05,44.64964886]
[1750140942103,5.1815068,154.09,154.06,0.14216157]
[1750140942307,31.8815068,154.1,154.06,6.63306895]
[1750140942497,31.8815068,154.1,154.06,0.14216157]
[1750140942815,31.8815068,154.1,154.07,0.14216157]
[1750140943195,38.37095202,154.1,154.07,0.14216157]
[1750140944498,38.37095202,154.1,154.06,0.28432314]
[1750140945299,26.7,154.1,154.06,5.46582994]
[1750140945498,31.8815068,154.1,154.06,5.46582994]
[1750140946714,5.1815068,154.16,154.07,18.64964886]
[1750140946898,5.82,154.15,154.12,18.64964886]
[1750140947294,32.52,154.15,154.12,23.83115566]
[1750140947529,32.52,154.15,154.13,18.64964886]
[1750140948426,32.52,154.15,154.13,23.83115566]
[1750140948597,32.52,154.15,154.13,18.64964886]
[1750140949328,37.7015068,154.15,154.13,18.64964886]
[1750140950115,44.18870373,154.15,154.13,18.64964886]
[1750140950326,5.1815068,154.14,154.11,18.64964886]
[1750140950528,5.1815068,154.13,154.11,18.64964886]
[1750140950731,39.00719693,154.15,154.11,18.64964886]
[1750140951029,44.18870373,154.15,154.11,18.64964886]
[1750140951913,17.48870373,154.15,154.11,18.64964886]
[1750140952100,32.52,154.15,154.12,0.28432314]
[1750140952724,12.3054551,154.2,154.15,18.64964886]
[1750140953023,5.1815068,154.19,154.15,5.1815068]
[1750140953216,31.8815068,154.19,154.14,24.1154788]
[1750140953718,5.1815068,154.19,154.14,30.60281048]
[1750140953900,5.1815068,154.16,154.11,26.0]
[1750140954099,5.1815068,154.15,154.12,18.933972]
[1750140954546,5.1815068,154.13,154.09,18.64964886]
[1750140954763,5.1815068,154.11,154.09,18.64964886]
[1750140954910,5.1815068,154.12,154.09,18.64964886]
[1750140957142,6.48811817,154.13,154.09,18.64964886]
[1750140957304,5.1815068,154.12,154.09,18.64964886]
[1750140958443,5.1815068,154.11,154.09,18.64964886]
[1750140959541,31.8815068,154.12,154.09,18.64964886]
[1750140960331,26.7,154.12,154.09,18.64964886]
[1750140960523,26.7,154.12,154.1,0.28432314]
[1750140960738,5.1815068,154.17,154.12,18.64964886]
[1750140960911,26.7,154.16,154.12,23.83115566]
[1750140961315,12.28382286,154.23,154.16,18.64964886]
[1750140961623,31.8815068,154.22,154.18,5.1815068]
[1750140961826,31.8815068,154.22,154.18,18.64964886]
[1750140962323,5.1815068,154.22,154.18,18.64964886]
[1750140962628,31.8815068,154.22,154.18,18.64964886]
[1750140962833,38.36578898,154.22,154.18,18.64964886]
[1750140963224,5.1815068,154.21,154.17,5.1815068]
[1750140963420,5.1815068,154.2,154.16,18.64964886]
[1750140963761,5.1815068,154.19,154.16,18.64964886]
[1750140964118,31.8815068,154.19,154.16,18.64964886]
[1750140965640,5.1815068,154.18,154.15,26.0]
[1750140966139,31.8815068,154.19,154.15,31.1815068]
[1750140966724,26.7,154.19,154.16,18.64964886]
[1750140966945,11.66575008,154.22,154.18,23.83115566]
[1750140967132,26.68,154.21,154.18,5.1815068]
[1750140967646,31.8615068,154.21,154.18,18.64964886]
[1750140967944,5.1815068,154.2,154.18,18.64964886]
[1750140968533,5.1815068,154.2,154.17,0.28432314]
[1750140969133,5.1815068,154.19,154.16,18.64964886]
[1750140969338,5.1815068,154.18,154.16,18.64964886]
[1750140969637,5.1815068,154.19,154.16,18.64964886]
[1750140970359,11.66666412,154.2,154.16,18.64964886]
[1750140970853,5.1815068,154.19,154.16,18.64964886]
[1750140971356,11.66709071,154.19,154.16,18.64964886]
[1750140972446,6.4850843,154.2,154.16,18.64964886]
[1750140972647,5.1815068,154.19,154.16,18.64964886]
[1750140972953,31.8615068,154.18,154.16,18.64964886]
[1750140973145,26.68,154.18,154.16,18.64964886]
[1750140973324,5.1815068,154.17,154.14,0.28432314]
[1750140973528,5.1815068,154.17,154.14,18.933972]
[1750140976142,11.66775145,154.18,154.14,18.933972]
[1750140984957,5.1815068,154.17,154.14,18.933972]
[1750140985149,11.66796892,154.17,154.14,18.933972]
[1750140985351,6.48646212,154.17,154.14,18.933972]
[1750140985560,11.66796892,154.17,154.14,18.933972]
[1750140986542,32.48,154.19,154.16,18.64964886]
[1750140986747,5.8,154.19,154.17,5.1815068]
[1750140987243,5.8,154.19,154.17,18.64964886]
[1750140987636,8.03667717,154.29,154.2,26.0]
[1750140987836,5.78,154.26,154.22,5.1815068]
[1750140988071,5.78,154.26,154.23,23.83115566]
[1750140988770,5.78,154.26,154.21,18.933972]
[1750140988972,5.78,154.26,154.23,5.1815068]
[1750140990057,5.78,154.26,154.23,11.66525596]
[1750140990455,5.78,154.26,154.24,5.1815068]
[1750140990656,5.78,154.26,154.25,18.64964886]
[1750140990870,16.48516096,154.3,154.25,5.46582994]
[1750140991073,16.48516096,154.3,154.26,5.1815068]
[1750140991368,43.14516096,154.3,154.27,18.64964886]
[1750140991570,16.48516096,154.3,154.27,18.64964886]
[1750140991752,43.14516096,154.3,154.27,18.64964886]
[1750140992470,37.96365416,154.3,154.27,18.64964886]
[1750140992669,43.14516096,154.3,154.27,18.64964886]
[1750140992956,37.96365416,154.3,154.27,18.64964886]
[1750140993160,11.30365416,154.3,154.27,23.83115566]
[1750140993347,5.78,154.31,154.27,23.83115566]
[1750140993549,26.66,154.3,154.27,23.83115566]
[1750140993752,26.66,154.3,154.27,0.28432314]
[1750140993943,44.10198971,154.31,154.27,0.28432314]
[1750140994144,5.1815068,154.3,154.26,23.83115566]
[1750140994339,5.1815068,154.29,154.26,18.933972]
[1750140994540,38.92048291,154.31,154.25,0.28432314]
[1750140994740,5.1815068,154.29,154.25,0.28432314]
[1750140995465,5.1815068,154.26,154.2,18.64964886]
[1750140995649,5.1815068,154.21,154.2,18.64964886]
[1750140995859,5.1815068,154.21,154.17,18.64964886]
[1750140996156,5.1815068,154.21,154.18,0.28432314]
[1750140996365,5.1815068,154.2,154.16,6.48668895]
[1750140996566,26.66,154.22,154.16,32.48668895]
[1750140996866,5.1815068,154.2,154.17,18.64964886]
[1750140997078,26.66,154.22,154.17,18.64964886]
[1750140997288,5.1815068,154.19,154.16,26.0]
[1750140997478,5.1815068,154.18,154.15,1.5878]
[1750140997646,5.1815068,154.18,154.13,11.66918653]
[1750140997854,5.1815068,154.18,154.15,18.933972]
[1750140998370,5.1815068,154.18,154.15,18.64964886]
[1750141000379,5.1815068,154.18,154.15,0.28432314]
[1750141000581,5.1815068,154.16,154.14,18.64964886]
[1750141000872,5.1815068,154.17,154.14,18.64964886]
[1750141002355,33.14594963,154.18,154.14,18.64964886]
[1750141002562,5.1815068,154.15,154.14,18.64964886]
[1750141003574,5.1815068,154.16,154.14,18.64964886]
[1750141004152,2.0,154.15,154.14,18.64964886]
[1750141004680,5.1815068,154.16,154.14,18.64964886]
[1750141004864,5.1815068,154.15,154.14,18.64964886]
[1750141007576,5.1815068,154.16,154.14,18.64964886]
[1750141008364,5.78,154.17,154.14,23.83115566]
[1750141008575,5.78,154.17,154.16,5.1815068]
[1750141008893,5.78,154.17,154.16,5.46582994]
[1750141009054,31.8415068,154.23,154.17,0.28432314]
[1750141009383,17.44490928,154.24,154.2,18.64964886]
[1750141009681,26.66,154.23,154.2,18.64964886]
[1750141010083,43.4415068,154.23,154.2,0.28432314]
[1750141010262,5.1815068,154.21,154.19,18.64964886]
[1750141010961,44.74388564,154.23,154.17,0.28432314]
[1750141011290,44.74388564,154.23,154.17,18.933972]
[1750141011490,5.1815068,154.21,154.17,5.46582994]
[1750141011965,6.48482258,154.21,154.17,5.46582994]
[1750141012168,11.66581771,154.22,154.18,0.28432314]
[1750141014085,5.1815068,154.2,154.15,18.64964886]
[1750141014286,6.48431091,154.22,154.15,18.64964886]
[1750141014287,5.1815068,154.19,154.15,18.64964886]
[1750141014491,5.1815068,154.19,154.16,0.14216157]
[1750141014692,5.1815068,154.19,154.16,0.28432314]
[1750141015379,2.0,154.19,154.16,5.46582994]
[1750141015577,5.1815068,154.2,154.16,5.46582994]
[1750141016686,11.66644264,154.21,154.16,11.95247852]
[1750141016871,5.1815068,154.21,154.17,5.1815068]
[1750141017189,5.1815068,154.21,154.16,6.77097172]
[1750141017190,5.1815068,154.21,154.16,11.95247852]
[1750141017792,5.1815068,154.2,154.16,0.28432314]
[1750141017972,5.1815068,154.19,154.16,0.28432314]
[1750141018283,5.1815068,154.21,154.16,5.46582994]
[1750141018789,6.48438527,154.22,154.16,5.46582994]
[1750141018994,5.1815068,154.21,154.16,5.46582994]
[1750141019194,5.1815068,154.2,154.16,5.46582994]
[1750141019492,5.1815068,154.2,154.16,11.95256637]
[1750141019664,6.48438527,154.22,154.16,11.95256637]
[1750141019966,5.1815068,154.21,154.16,11.95256637]
[1750141020166,5.1815068,154.21,154.15,18.64964886]
[1750141020167,5.1815068,154.17,154.13,6.5674]
[1750141020393,5.1815068,154.15,154.12,18.64964886]
[1750141020897,5.1815068,154.16,154.12,18.64964886]
[1750141021262,5.1815068,154.16,154.12,30.31936762]
[1750141021494,5.1815068,154.2,154.16,18.933972]
[1750141021697,31.8215068,154.2,154.16,24.1154788]
[1750141021998,26.64,154.2,154.16,24.1154788]
[1750141022691,38.30660694,154.2,154.16,24.1154788]
[1750141022897,5.1815068,154.18,154.15,18.64964886]
[1750141023280,5.1815068,154.19,154.15,18.64964886]
[1750141023475,33.12510014,154.2,154.15,23.83115566]
[1750141023788,5.1815068,154.19,154.15,23.83115566]
[1750141024288,5.1815068,154.19,154.15,18.64964886]
[1750141024877,5.1815068,154.19,154.15,30.31829873]
[1750141025267,26.64,154.2,154.15,30.31829873]
[1750141025473,38.30661017,154.2,154.15,30.31829873]
[1750141025670,11.6,154.19,154.15,30.31829873]
[1750141026294,11.6,154.19,154.16,0.28432314]
[1750141027505,11.6,154.19,154.16,11.95247637]
[1750141028373,16.7815068,154.19,154.16,18.933972]
[1750141028806,5.1815068,154.19,154.16,0.28432314]
[1750141028984,31.8215068,154.2,154.16,0.28432314]
[1750141029507,31.8215068,154.2,154.17,18.64964886]
[1750141030900,5.1815068,154.19,154.16,0.28432314]
[1750141031213,49.33803313,154.2,154.12,18.64964886]
[1750141031381,5.1815068,154.14,154.11,18.64964886]
[1750141031584,5.1815068,154.14,154.12,0.28432314]
[1750141031585,31.8215068,154.14,154.12,0.28432314]
[1750141031783,26.64,154.14,154.11,18.64964886]
[1750141032004,31.8215068,154.14,154.12,0.28432314]
[1750141032183,31.8215068,154.14,154.11,18.64964886]
[1750141032386,5.1815068,154.12,154.06,9.89034916]
[1750141032589,5.1815068,154.1,154.06,1.5396]
[1750141032786,5.1815068,154.1,154.07,18.933972]
[1750141033207,5.1815068,154.1,154.07,18.64964886]
[1750141033505,5.1815068,154.1,154.08,0.28432314]
[1750141034299,5.1815068,154.1,154.08,0.14216157]
[1750141034492,31.8215068,154.11,154.08,0.28432314]
[1750141035212,26.64,154.11,154.09,18.64964886]
[1750141035980,28.64,154.11,154.09,18.64964886]
[1750141037281,26.64,154.11,154.09,18.64964886]
[1750141037583,5.78,154.19,154.12,0.28432314]
[1750141037786,5.78,154.19,154.15,23.83115566]
[1750141038114,5.1815068,154.17,154.14,18.64964886]
[1750141038408,5.1815068,154.16,154.14,18.64964886]
[1750141038782,5.1815068,154.17,154.14,18.64964886]
[1750141039408,5.1815068,154.16,154.14,18.64964886]
[1750141039789,32.42,154.19,154.15,26.28432314]
[1750141039790,5.78,154.19,154.15,26.28432314]
[1750141039985,11.66462278,154.25,154.19,18.64964886]
[1750141040204,5.1815068,154.24,154.2,0.28432314]
[1750141040405,5.1815068,154.23,154.19,18.64964886]
[1750141041104,16.7815068,154.23,154.19,5.1815068]
[1750141041293,16.7815068,154.23,154.2,18.64964886]
[1750141041810,11.6,154.23,154.2,18.64964886]
[1750141042779,11.6,154.23,154.2,5.1815068]
[1750141044411,18.08408637,154.23,154.2,5.1815068]
[1750141047827,18.08408637,154.23,154.18,0.28432314]
[1750141047828,18.08408637,154.23,154.15,26.0]
[1750141047988,5.1815068,154.2,154.16,18.64964886]
[1750141048186,5.1815068,154.2,154.17,0.28432314]
[1750141048707,5.1815068,154.19,154.16,18.64964886]
[1750141049596,5.1815068,154.19,154.16,0.14216157]
[1750141049800,6.48592554,154.18,154.16,0.28432314]
[1750141050408,11.66743234,154.18,154.16,0.28432314]
[1750141050614,11.66743234,154.18,154.14,23.83115566]
[1750141050817,5.1815068,154.16,154.13,1.6524]
[1750141051003,5.1815068,154.14,154.09,1.6454]
[1750141051311,5.1815068,154.13,154.09,1.6454]
[1750141051516,5.1815068,154.13,154.1,18.933972]
[1750141051716,31.8415068,154.13,154.1,18.933972]
[1750141051915,26.66,154.13,154.1,23.83115566]
[1750141052490,26.66,154.13,154.11,0.28432314]
[1750141052690,26.66,154.13,154.11,0.14216157]
[1750141052903,26.66,154.13,154.11,0.28432314]
[1750141054318,26.66,154.13,154.12,18.64964886]
[1750141054523,14.26875019,154.17,154.12,26.4319405]
[1750141054722,26.66,154.16,154.13,0.28432314]
[1750141055696,28.66,154.16,154.13,0.28432314]
[1750141055897,26.66,154.16,154.13,0.28432314]
[1750141059112,26.66,154.16,154.14,0.28432314]
[1750141061411,26.66,154.16,154.14,18.933972]
[1750141061724,34.42229164,154.17,154.14,0.28432314]
[1750141062509,7.78229164,154.15,154.11,0.28432314]
[1750141062710,34.42229164,154.14,154.11,0.28432314]
[1750141062928,34.42229164,154.14,154.11,0.14216157]
[1750141063224,34.42229164,154.14,154.05,11.18759475]
[1750141063225,7.78229164,154.12,154.05,11.18759475]
[1750141063427,7.78229164,154.09,154.05,1.5053]
[1750141063722,7.78229164,154.07,154.04,6.0136]
[1750141063921,26.64,154.07,154.04,13.79589164]
[1750141064122,26.64,154.07,154.05,7.78229164]
[1750141064328,26.64,154.07,154.06,18.933972]
[1750141064504,26.64,154.07,154.06,18.64964886]
[1750141064703,26.64,154.07,154.06,18.933972]
[1750141065327,26.64,154.07,154.06,18.79181043]
[1750141065625,26.64,154.07,154.06,18.933972]
[1750141069929,26.64,154.09,154.06,18.933972]
[1750141070727,28.64,154.09,154.06,18.933972]
[1750141071107,26.64,154.09,154.06,18.933972]
[1750141072718,26.64,154.09,154.06,26.71626364]
[1750141073523,1.5961,154.14,154.08,7.78229164]
[1750141073826,26.66,154.13,154.1,7.78229164]
[1750141074234,40.20229164,154.14,154.1,7.78229164]
[1750141074914,5.18905472,154.13,154.1,18.64964886]
[1750141075736,31.84905472,154.13,154.1,18.64964886]
[1750141076728,5.18905472,154.13,154.1,18.64964886]
[1750141076926,31.84905472,154.13,154.1,18.64964886]
[1750141077134,2.0,154.12,154.1,18.64964886]
[1750141077531,31.84905472,154.13,154.1,18.64964886]
[1750141077844,32.4,154.14,154.11,5.18905472]
[1750141078216,32.4,154.14,154.11,18.64964886]
[1750141078513,5.18905472,154.13,154.09,0.28432314]
[1750141078728,5.18905472,154.12,154.09,18.64964886]
[1750141079036,5.18905472,154.11,154.07,11.96391719]
[1750141079232,5.18905472,154.1,154.06,11.67990815]
[1750141079429,5.18905472,154.1,154.07,18.64964886]
[1750141079633,26.64,154.11,154.08,5.47337786]
[1750141080140,26.64,154.13,154.1,5.18905472]
[1750141080338,5.76,154.14,154.12,5.18905472]
[1750141081042,31.82905472,154.13,154.09,18.64964886]
[1750141081223,26.64,154.13,154.09,23.83870358]
[1750141081537,26.64,154.13,154.11,5.18905472]
[1750141081739,26.64,154.13,154.11,18.64964886]
[1750141082038,31.82905472,154.13,154.1,18.64964886]
[1750141082238,11.6,154.12,154.1,18.64964886]
[1750141082643,5.18905472,154.13,154.1,18.64964886]
[1750141082815,31.82905472,154.13,154.1,18.64964886]
[1750141083020,5.18905472,154.12,154.09,18.64964886]
[1750141083242,5.18905472,154.11,154.06,6.4908565]
[1750141083429,33.12806796,154.13,154.07,18.64964886]
[1750141083430,31.82905472,154.1,154.07,18.64964886]
[1750141084520,5.18905472,154.09,154.05,11.82260014]
[1750141084727,5.18905472,154.09,154.06,18.64964886]
[1750141085024,5.18905472,154.08,154.05,18.64964886]
[1750141086720,6.48977171,154.09,154.05,18.64964886]
[1750141086925,11.67882643,154.09,154.05,23.83870358]
[1750141087352,5.18905472,154.09,154.05,23.83870358]
[1750141087543,11.6,154.08,154.05,23.83870358]
[1750141087721,5.76,154.14,154.08,0.14216157]
[1750141087722,12.24774211,154.14,154.08,0.14216157]
[1750141087922,5.18905472,154.13,154.09,5.18905472]
[1750141088143,26.64,154.12,154.09,5.18905472]
[1750141088827,26.64,154.12,154.08,25.13954281]
[1750141088828,26.64,154.12,154.08,30.32859753]
[1750141089830,26.64,154.13,154.1,5.18905472]
[1750141090035,5.18905472,154.12,154.07,6.4904081]
[1750141090363,5.18905472,154.11,154.08,18.64964886]
[1750141090543,5.18905472,154.12,154.08,23.83870358]
[1750141091147,31.82905472,154.12,154.08,23.83870358]
[1750141091357,38.31755295,154.12,154.08,23.83870358]
[1750141092960,2.0,154.11,154.08,23.83870358]
[1750141093463,38.31755295,154.12,154.08,23.83870358]
[1750141094442,33.12849823,154.12,154.08,23.83870358]
[1750141094652,31.82905472,154.12,154.08,30.32872931]
[1750141094841,26.64,154.12,154.08,30.32872931]
[1750141095027,38.31753559,154.12,154.08,23.83870358]
[1750141095435,38.31753559,154.12,154.08,5.18905472]
[1750141096649,38.31753559,154.12,154.08,23.83870358]
[1750141098152,5.18905472,154.11,154.08,18.64964886]
[1750141098353,5.18905472,154.09,154.04,1.5522]
[1750141098542,6.48909864,154.11,154.0,9.77639964]
[1750141098543,5.18905472,154.07,154.05,18.64964886]